[Event "Titled Tuesday Blitz January 17 Early 2023"]
[White "Bernadskiy, Vitaliy"]
[Black "Esipenko, Andrey"]
[WhiteFideId "14100371"]
[BlackFideId "24175439"]
[WhiteElo "2592"]
[BlackElo "2679"]
[Result "0-1"]
[Round "10"]
[TimeControl "180+2"]
[Date "2023.01.17"]
[WhiteClock "0:00:05"]
[BlackClock "0:00:19"]

1. e4 {[%clk 0:03:00]}  e5 {[%clk 0:02:58]} 2. Nf3 {[%clk 0:03:01]}  Nc6 {[%clk 0:02:58]} 3. Bb5 {[%clk 0:03:00]}  a6 {[%clk 0:02:58]} 4. Ba4 {[%clk 0:03:01]}  Nf6 {[%clk 0:02:58]} 5. O-O {[%clk 0:03:01]}  Be7 {[%clk 0:02:59]} 6. Re1 {[%clk 0:03:00]}  b5 {[%clk 0:02:59]} 7. Bb3 {[%clk 0:03:00]}  O-O {[%clk 0:02:59]} 8. c3 {[%clk 0:02:59]}  d6 {[%clk 0:02:59]} 9. h3 {[%clk 0:02:58]}  h6 {[%clk 0:02:59]} 10. d4 {[%clk 0:02:57]}  Bd7 {[%clk 0:02:59]} 11. Nbd2 {[%clk 0:02:50]}  a5 {[%clk 0:02:59]} 12. a3 {[%clk 0:02:50]}  a4 {[%clk 0:02:56]} 13. Ba2 {[%clk 0:02:49]}  Re8 {[%clk 0:02:56]} 14. Nf1 {[%clk 0:02:49]}  Bf8 {[%clk 0:02:56]} 15. dxe5 {[%clk 0:02:34]}  Nxe5 {[%clk 0:02:33]} 16. Ng3 {[%clk 0:02:28]}  c5 {[%clk 0:02:28]} 17. Be3 {[%clk 0:02:01]}  Qc7 {[%clk 0:02:25]} 18. Nxe5 {[%clk 0:01:53]}  dxe5 {[%clk 0:02:24]} 19. Qf3 {[%clk 0:01:53]}  Qc6 {[%clk 0:02:19]} 20. Rad1 {[%clk 0:01:49]}  Be6 {[%clk 0:02:18]} 21. Bd5 {[%clk 0:01:41]}  Bxd5 {[%clk 0:02:14]} 22. exd5 {[%clk 0:01:41]}  Qa6 {[%clk 0:01:45]} 23. Nf5 {[%clk 0:01:40]}  Kh7 {[%clk 0:01:26]} 24. d6 {[%clk 0:01:37]}  e4 {[%clk 0:01:25]} 25. Qf4 {[%clk 0:01:33]}  g5 {[%clk 0:00:56]} 26. Qg3 {[%clk 0:01:32]}  Qc8 {[%clk 0:00:55]} 27. d7 {[%clk 0:00:39]}  Nxd7 {[%clk 0:00:55]} 28. Nd6 {[%clk 0:00:38]}  Bxd6 {[%clk 0:00:53]} 29. Rxd6 {[%clk 0:00:38]}  Ne5 {[%clk 0:00:40]} 30. Red1 {[%clk 0:00:37]}  Ra6 {[%clk 0:00:30]} 31. Rxa6 {[%clk 0:00:27]}  Qxa6 {[%clk 0:00:31]} 32. Rd5 {[%clk 0:00:25]}  Qe6 {[%clk 0:00:25]} 33. Rxc5 {[%clk 0:00:24]}  f5 {[%clk 0:00:25]} 34. Bxg5 {[%clk 0:00:15]}  hxg5 {[%clk 0:00:24]} 35. Qxg5 {[%clk 0:00:15]}  Nf3+ {[%clk 0:00:20]} 36. gxf3 {[%clk 0:00:13]}  Rg8 {[%clk 0:00:21]} 37. Rxf5 {[%clk 0:00:05]}  Qxf5 {[%clk 0:00:19]} 0-1


[Site "https://www.chess.com"]

[Event "Titled Tuesday Blitz January 17 Early 2023"]
[White "Nakamura, Hikaru"]
[Black "Zierk, Steven"]
[WhiteFideId "2016192"]
[BlackFideId "2034255"]
[WhiteElo "2775"]
[BlackElo "2488"]
[Result "1-0"]
[Round "10"]
[TimeControl "180+2"]
[Date "2023.01.17"]
[WhiteClock "0:00:20"]
[BlackClock "0:00:40"]

1. Nf3 {[%clk 0:03:00]}  d5 {[%clk 0:02:59]} 2. g3 {[%clk 0:03:00]}  Nf6 {[%clk 0:02:59]} 3. Bg2 {[%clk 0:03:00]}  c6 {[%clk 0:03:00]} 4. d3 {[%clk 0:02:58]}  Bg4 {[%clk 0:03:00]} 5. h3 {[%clk 0:02:58]}  Bxf3 {[%clk 0:03:00]} 6. Bxf3 {[%clk 0:02:59]}  e5 {[%clk 0:03:01]} 7. Nd2 {[%clk 0:02:59]}  Be7 {[%clk 0:03:01]} 8. e3 {[%clk 0:02:58]}  Nbd7 {[%clk 0:03:00]} 9. O-O {[%clk 0:02:58]}  O-O {[%clk 0:03:01]} 10. b3 {[%clk 0:02:59]}  a5 {[%clk 0:03:00]} 11. a3 {[%clk 0:02:59]}  Qc7 {[%clk 0:03:00]} 12. Bb2 {[%clk 0:02:59]}  Rfe8 {[%clk 0:02:59]} 13. Bg2 {[%clk 0:02:58]}  a4 {[%clk 0:02:52]} 14. b4 {[%clk 0:02:58]}  c5 {[%clk 0:02:52]} 15. bxc5 {[%clk 0:02:48]}  Bxc5 {[%clk 0:02:50]} 16. Qe2 {[%clk 0:02:39]}  b5 {[%clk 0:02:47]} 17. Rfb1 {[%clk 0:02:35]}  b4 {[%clk 0:02:45]} 18. Qd1 {[%clk 0:02:12]}  Reb8 {[%clk 0:02:28]} 19. axb4 {[%clk 0:02:03]}  Rxb4 {[%clk 0:02:23]} 20. c3 {[%clk 0:02:00]}  Rb6 {[%clk 0:02:11]} 21. Rxa4 {[%clk 0:01:56]}  Rab8 {[%clk 0:02:08]} 22. Ba1 {[%clk 0:01:51]}  Rxb1 {[%clk 0:02:07]} 23. Nxb1 {[%clk 0:01:52]}  Qb6 {[%clk 0:01:54]} 24. Nd2 {[%clk 0:01:51]}  Bxe3 {[%clk 0:01:54]} 25. fxe3 {[%clk 0:01:51]}  Qxe3+ {[%clk 0:01:55]} 26. Kh2 {[%clk 0:01:51]}  Qxd3 {[%clk 0:01:55]} 27. Ra2 {[%clk 0:01:35]}  e4 {[%clk 0:01:49]} 28. Qf1 {[%clk 0:01:29]}  Qe3 {[%clk 0:01:49]} 29. Qg1 {[%clk 0:00:40]}  Qe2 {[%clk 0:01:29]} 30. c4 {[%clk 0:00:37]}  e3 {[%clk 0:01:25]} 31. Qf1 {[%clk 0:00:37]}  Qh5 {[%clk 0:01:16]} 32. Nf3 {[%clk 0:00:37]}  Ng4+ {[%clk 0:01:11]} 33. Kg1 {[%clk 0:00:36]}  Nf2 {[%clk 0:01:11]} 34. Re2 {[%clk 0:00:33]}  dxc4 {[%clk 0:01:05]} 35. Rxe3 {[%clk 0:00:33]}  Nd3 {[%clk 0:01:06]} 36. Bd4 {[%clk 0:00:28]}  Qg6 {[%clk 0:01:03]} 37. Kh2 {[%clk 0:00:25]}  Qd6 {[%clk 0:01:00]} 38. Qa1 {[%clk 0:00:24]}  Nf6 {[%clk 0:00:54]} 39. Bxf6 {[%clk 0:00:22]}  gxf6 {[%clk 0:00:54]} 40. Nd2 {[%clk 0:00:21]}  Rb2 {[%clk 0:00:44]} 41. Rxd3 {[%clk 0:00:18]}  Qxd3 {[%clk 0:00:40]} 42. Qxb2 {[%clk 0:00:18]}  c3 {[%clk 0:00:41]} 43. Qb8+ {[%clk 0:00:18]}  Kg7 {[%clk 0:00:41]} 44. Nb3 {[%clk 0:00:18]}  c2 {[%clk 0:00:41]} 45. Nc1 {[%clk 0:00:19]}  Qd1 {[%clk 0:00:40]} 46. Qf4 {[%clk 0:00:19]}  h5 {[%clk 0:00:40]} 47. h4 {[%clk 0:00:20]} 1-0


[Site "https://www.chess.com"]

[Event "Titled Tuesday Blitz January 17 Early 2023"]
[White "Svane, Rasmus"]
[Black "Kovalenko, Igor"]
[WhiteFideId "4657101"]
[BlackFideId "14117908"]
[WhiteElo "2623"]
[BlackElo "2674"]
[Result "1/2-1/2"]
[Round "10"]
[TimeControl "180+2"]
[Date "2023.01.17"]
[WhiteClock "0:00:23"]
[BlackClock "0:00:48"]

1. Nf3 {[%clk 0:03:00]}  d5 {[%clk 0:02:59]} 2. g3 {[%clk 0:03:00]}  Nd7 {[%clk 0:02:59]} 3. d4 {[%clk 0:03:00]}  Nb6 {[%clk 0:03:00]} 4. Nc3 {[%clk 0:03:01]}  Bf5 {[%clk 0:02:59]} 5. Nh4 {[%clk 0:03:01]}  Bg4 {[%clk 0:02:59]} 6. h3 {[%clk 0:02:59]}  Bh5 {[%clk 0:02:59]} 7. Qd3 {[%clk 0:02:59]}  e6 {[%clk 0:02:56]} 8. e4 {[%clk 0:03:00]}  c6 {[%clk 0:02:53]} 9. Ng2 {[%clk 0:02:56]}  Bg6 {[%clk 0:02:52]} 10. Nf4 {[%clk 0:02:54]}  dxe4 {[%clk 0:02:50]} 11. Nxe4 {[%clk 0:02:55]}  Nf6 {[%clk 0:02:47]} 12. Nxg6 {[%clk 0:02:50]}  hxg6 {[%clk 0:02:48]} 13. Bg2 {[%clk 0:02:50]}  Nxe4 {[%clk 0:02:45]} 14. Bxe4 {[%clk 0:02:46]}  Be7 {[%clk 0:02:45]} 15. h4 {[%clk 0:02:45]}  Nd5 {[%clk 0:02:44]} 16. Bd2 {[%clk 0:02:41]}  Bf6 {[%clk 0:02:44]} 17. O-O-O {[%clk 0:02:33]}  a5 {[%clk 0:02:43]} 18. Kb1 {[%clk 0:02:20]}  Ne7 {[%clk 0:02:39]} 19. Bc1 {[%clk 0:02:15]}  Qb6 {[%clk 0:02:37]} 20. c3 {[%clk 0:01:52]}  a4 {[%clk 0:02:33]} 21. Bf3 {[%clk 0:01:43]}  Nf5 {[%clk 0:02:21]} 22. h5 {[%clk 0:01:41]}  gxh5 {[%clk 0:02:20]} 23. Bxh5 {[%clk 0:01:36]}  g6 {[%clk 0:02:20]} 24. Bf3 {[%clk 0:01:34]}  O-O-O {[%clk 0:02:20]} 25. Qc4 {[%clk 0:01:30]}  Qa5 {[%clk 0:02:18]} 26. a3 {[%clk 0:01:28]}  Nd6 {[%clk 0:02:17]} 27. Qb4 {[%clk 0:01:24]}  Qxb4 {[%clk 0:02:12]} 28. axb4 {[%clk 0:01:25]}  Kd7 {[%clk 0:02:12]} 29. Ka2 {[%clk 0:01:17]}  b5 {[%clk 0:02:12]} 30. Bf4 {[%clk 0:01:15]}  Nc4 {[%clk 0:02:12]} 31. Be2 {[%clk 0:01:10]}  Nb6 {[%clk 0:02:12]} 32. Kb1 {[%clk 0:01:07]}  Nd5 {[%clk 0:02:10]} 33. Bd2 {[%clk 0:01:07]}  Be7 {[%clk 0:02:10]} 34. Kc2 {[%clk 0:01:07]}  Bd6 {[%clk 0:02:06]} 35. Bf3 {[%clk 0:01:08]}  f6 {[%clk 0:02:04]} 36. Rxh8 {[%clk 0:01:07]}  Rxh8 {[%clk 0:02:04]} 37. Rh1 {[%clk 0:01:08]}  Rxh1 {[%clk 0:02:04]} 38. Bxh1 {[%clk 0:01:09]}  f5 {[%clk 0:01:59]} 39. Bf3 {[%clk 0:01:08]}  Ke7 {[%clk 0:01:56]} 40. Kd3 {[%clk 0:01:05]}  Kf6 {[%clk 0:01:50]} 41. Bc1 {[%clk 0:01:05]}  g5 {[%clk 0:01:49]} 42. Bd1 {[%clk 0:01:04]}  Bc7 {[%clk 0:01:44]} 43. b3 {[%clk 0:01:03]}  axb3 {[%clk 0:01:43]} 44. Bxb3 {[%clk 0:01:03]}  g4 {[%clk 0:01:42]} 45. Bd1 {[%clk 0:01:01]}  Bb6 {[%clk 0:01:34]} 46. Bd2 {[%clk 0:01:01]}  Bc7 {[%clk 0:01:32]} 47. c4 {[%clk 0:01:01]}  bxc4+ {[%clk 0:01:29]} 48. Kxc4 {[%clk 0:01:02]}  Bd6 {[%clk 0:01:29]} 49. Be2 {[%clk 0:00:55]}  Nc7 {[%clk 0:01:26]} 50. Bd1 {[%clk 0:00:54]}  Ke7 {[%clk 0:01:25]} 51. Ba4 {[%clk 0:00:53]}  Kd7 {[%clk 0:01:25]} 52. Bc1 {[%clk 0:00:51]}  Nd5 {[%clk 0:01:25]} 53. Bd2 {[%clk 0:00:50]}  Nb6+ {[%clk 0:01:24]} 54. Kb3 {[%clk 0:00:50]}  Nxa4 {[%clk 0:01:24]} 55. Kxa4 {[%clk 0:00:51]}  Bc7 {[%clk 0:01:22]} 56. Kb3 {[%clk 0:00:51]}  Bb6 {[%clk 0:01:21]} 57. Kc4 {[%clk 0:00:51]}  e5 {[%clk 0:01:17]} 58. Be3 {[%clk 0:00:37]}  Bc7 {[%clk 0:00:50]} 59. dxe5 {[%clk 0:00:28]}  Bxe5 {[%clk 0:00:51]} 60. Kc5 {[%clk 0:00:28]}  Bc3 {[%clk 0:00:49]} 61. Kc4 {[%clk 0:00:26]}  Be1 {[%clk 0:00:49]} 62. b5 {[%clk 0:00:23]}  cxb5+ {[%clk 0:00:49]} 63. Kxb5 {[%clk 0:00:24]}  Kd6 {[%clk 0:00:47]} 64. Kc4 {[%clk 0:00:24]}  Ke5 {[%clk 0:00:48]} 65. Kd3 {[%clk 0:00:25]}  Kd5 {[%clk 0:00:48]} 66. Ke2 {[%clk 0:00:25]}  Bb4 {[%clk 0:00:48]} 67. f3 {[%clk 0:00:25]}  Bd6 {[%clk 0:00:48]} 68. fxg4 {[%clk 0:00:25]}  fxg4 {[%clk 0:00:48]} 69. Kf2 {[%clk 0:00:25]}  Ke4 {[%clk 0:00:49]} 70. Bb6 {[%clk 0:00:25]}  Be5 {[%clk 0:00:49]} 71. Kg2 {[%clk 0:00:25]}  Kd3 {[%clk 0:00:48]} 72. Bf2 {[%clk 0:00:25]}  Bd4 {[%clk 0:00:48]} 73. Be1 {[%clk 0:00:23]}  Bc3 {[%clk 0:00:48]} 74. Bf2 {[%clk 0:00:24]}  Ke2 {[%clk 0:00:48]} 75. Bc5 {[%clk 0:00:24]}  Be1 {[%clk 0:00:48]} 76. Bd6 {[%clk 0:00:24]}  Bd2 {[%clk 0:00:48]} 77. Bc7 {[%clk 0:00:24]}  Be3 {[%clk 0:00:48]} 78. Bd6 {[%clk 0:00:24]}  Bb6 {[%clk 0:00:49]} 79. Be5 {[%clk 0:00:24]}  Kd3 {[%clk 0:00:49]} 80. Bd6 {[%clk 0:00:24]}  Ke4 {[%clk 0:00:50]} 81. Bb4 {[%clk 0:00:23]}  Bd4 {[%clk 0:00:51]} 82. Bd6 {[%clk 0:00:23]}  Be5 {[%clk 0:00:51]} 83. Bc5 {[%clk 0:00:23]}  Kd3 {[%clk 0:00:47]} 84. Be7 {[%clk 0:00:23]}  Bd4 {[%clk 0:00:47]} 85. Bg5 {[%clk 0:00:23]}  Be5 {[%clk 0:00:48]} 86. Be7 {[%clk 0:00:22]}  Bxg3 {[%clk 0:00:48]} 87. Kxg3 {[%clk 0:00:22]}  Ke4 {[%clk 0:00:48]} 88. Kxg4 {[%clk 0:00:23]} 1/2-1/2


[Site "https://www.chess.com"]

[Event "Titled Tuesday Blitz January 17 Early 2023"]
[White "Timofeev, Artyom"]
[Black "Sychev, Klementy"]
[WhiteFideId "4140419"]
[BlackFideId "4114060"]
[WhiteElo "2567"]
[BlackElo "2547"]
[Result "1-0"]
[Round "10"]
[TimeControl "180+2"]
[Date "2023.01.17"]
[WhiteClock "0:00:02"]
[BlackClock "0:00:01"]

1. e4 {[%clk 0:03:00]}  e5 {[%clk 0:02:58]} 2. Nf3 {[%clk 0:03:00]}  Nc6 {[%clk 0:02:58]} 3. Bb5 {[%clk 0:03:00]}  a6 {[%clk 0:02:58]} 4. Ba4 {[%clk 0:02:59]}  b5 {[%clk 0:02:57]} 5. Bb3 {[%clk 0:02:59]}  Na5 {[%clk 0:02:58]} 6. O-O {[%clk 0:02:56]}  d6 {[%clk 0:02:58]} 7. c3 {[%clk 0:02:55]}  Nxb3 {[%clk 0:02:56]} 8. axb3 {[%clk 0:02:55]}  Bb7 {[%clk 0:02:57]} 9. Re1 {[%clk 0:02:54]}  Ne7 {[%clk 0:02:56]} 10. d4 {[%clk 0:02:54]}  Ng6 {[%clk 0:02:56]} 11. Bg5 {[%clk 0:02:48]}  Qc8 {[%clk 0:02:39]} 12. Nbd2 {[%clk 0:02:44]}  h6 {[%clk 0:02:39]} 13. Be3 {[%clk 0:02:44]}  Be7 {[%clk 0:02:39]} 14. d5 {[%clk 0:02:36]}  f5 {[%clk 0:02:31]} 15. exf5 {[%clk 0:02:35]}  Qxf5 {[%clk 0:02:31]} 16. c4 {[%clk 0:02:35]}  O-O {[%clk 0:02:31]} 17. Qb1 {[%clk 0:02:34]}  Qf7 {[%clk 0:02:24]} 18. Ne4 {[%clk 0:02:28]}  Bc8 {[%clk 0:02:22]} 19. cxb5 {[%clk 0:02:17]}  Qxd5 {[%clk 0:02:11]} 20. bxa6 {[%clk 0:01:56]}  Rxa6 {[%clk 0:02:08]} 21. Rxa6 {[%clk 0:01:53]}  Bxa6 {[%clk 0:02:08]} 22. Nc3 {[%clk 0:01:47]}  Qf7 {[%clk 0:01:58]} 23. Qe4 {[%clk 0:01:46]}  Rb8 {[%clk 0:01:44]} 24. Nd5 {[%clk 0:01:44]}  Rxb3 {[%clk 0:01:07]} 25. Qxg6 {[%clk 0:00:57]}  Qxd5 {[%clk 0:01:06]} 26. Bxh6 {[%clk 0:00:53]}  Qf7 {[%clk 0:00:57]} 27. Qxf7+ {[%clk 0:00:53]}  Kxf7 {[%clk 0:00:57]} 28. Bc1 {[%clk 0:00:53]}  Bf6 {[%clk 0:00:55]} 29. Nd2 {[%clk 0:00:51]}  Rb4 {[%clk 0:00:44]} 30. Ne4 {[%clk 0:00:51]}  d5 {[%clk 0:00:43]} 31. Nxf6 {[%clk 0:00:50]}  gxf6 {[%clk 0:00:42]} 32. f3 {[%clk 0:00:50]}  d4 {[%clk 0:00:39]} 33. h4 {[%clk 0:00:48]}  Bb7 {[%clk 0:00:32]} 34. h5 {[%clk 0:00:47]}  c5 {[%clk 0:00:32]} 35. Kf2 {[%clk 0:00:42]}  c4 {[%clk 0:00:32]} 36. Rh1 {[%clk 0:00:42]}  Kg7 {[%clk 0:00:30]} 37. Rh3 {[%clk 0:00:38]}  Bd5 {[%clk 0:00:20]} 38. Rg3+ {[%clk 0:00:37]}  Kh7 {[%clk 0:00:21]} 39. Rg6 {[%clk 0:00:38]}  Rb6 {[%clk 0:00:19]} 40. Rh6+ {[%clk 0:00:28]}  Kg7 {[%clk 0:00:19]} 41. Rg6+ {[%clk 0:00:29]}  Kf7 {[%clk 0:00:19]} 42. Rg3 {[%clk 0:00:27]}  Rb8 {[%clk 0:00:09]} 43. h6 {[%clk 0:00:27]}  Rh8 {[%clk 0:00:09]} 44. Rg7+ {[%clk 0:00:26]}  Ke6 {[%clk 0:00:09]} 45. g4 {[%clk 0:00:19]}  e4 {[%clk 0:00:08]} 46. fxe4 {[%clk 0:00:18]}  Bxe4 {[%clk 0:00:09]} 47. Kg3 {[%clk 0:00:18]}  c3 {[%clk 0:00:07]} 48. bxc3 {[%clk 0:00:17]}  dxc3 {[%clk 0:00:07]} 49. Rc7 {[%clk 0:00:18]}  c2 {[%clk 0:00:06]} 50. Kf4 {[%clk 0:00:16]}  Bd3 {[%clk 0:00:06]} 51. Kf3 {[%clk 0:00:12]}  Bg6 {[%clk 0:00:05]} 52. Rg7 {[%clk 0:00:11]}  Bd3 {[%clk 0:00:05]} 53. Ke3 {[%clk 0:00:10]}  Bc4 {[%clk 0:00:03]} 54. h7 {[%clk 0:00:10]}  Bd5 {[%clk 0:00:03]} 55. Kd4 {[%clk 0:00:10]}  Bf3 {[%clk 0:00:03]} 56. Ke3 {[%clk 0:00:09]}  Bd5 {[%clk 0:00:03]} 57. Bb2 {[%clk 0:00:08]}  Bc6 {[%clk 0:00:03]} 58. g5 {[%clk 0:00:07]}  Be8 {[%clk 0:00:02]} 59. gxf6 {[%clk 0:00:05]}  Bf7 {[%clk 0:00:02]} 60. Kf4 {[%clk 0:00:04]}  Rb8 {[%clk 0:00:02]} 61. Bc1 {[%clk 0:00:03]}  Kxf6 {[%clk 0:00:02]} 62. Rg1 {[%clk 0:00:01]}  Rb4+ {[%clk 0:00:01]} 63. Ke3 {[%clk 0:00:01]}  Rb3+ {[%clk 0:00:01]} 64. Kd2 {[%clk 0:00:01]}  Rh3 {[%clk 0:00:01]} 65. Rh1 {[%clk 0:00:02]} 1-0


[Site "https://www.chess.com"]

[Event "Titled Tuesday Blitz January 17 Early 2023"]
[White "Postny, Evgeny"]
[Black "Grandelius, Nils"]
[WhiteFideId "2804344"]
[BlackFideId "1710400"]
[WhiteElo "2549"]
[BlackElo "2664"]
[Result "0-1"]
[Round "10"]
[TimeControl "180+2"]
[Date "2023.01.17"]
[WhiteClock "0:01:06"]
[BlackClock "0:01:15"]

1. Nf3 {[%clk 0:02:55]}  c5 {[%clk 0:02:58]} 2. c4 {[%clk 0:02:56]}  Nc6 {[%clk 0:02:57]} 3. g3 {[%clk 0:02:56]}  e5 {[%clk 0:02:53]} 4. Bg2 {[%clk 0:02:56]}  g6 {[%clk 0:02:44]} 5. Nc3 {[%clk 0:02:56]}  Bg7 {[%clk 0:02:44]} 6. O-O {[%clk 0:02:57]}  Nge7 {[%clk 0:02:43]} 7. Ne1 {[%clk 0:02:57]}  d6 {[%clk 0:02:42]} 8. Nc2 {[%clk 0:02:57]}  Be6 {[%clk 0:02:42]} 9. Ne3 {[%clk 0:02:58]}  h5 {[%clk 0:02:38]} 10. h4 {[%clk 0:02:56]}  Qd7 {[%clk 0:02:35]} 11. Ncd5 {[%clk 0:02:52]}  O-O {[%clk 0:02:23]} 12. d3 {[%clk 0:02:45]}  Bh3 {[%clk 0:02:20]} 13. Rb1 {[%clk 0:02:43]}  Bxg2 {[%clk 0:02:19]} 14. Kxg2 {[%clk 0:02:44]}  f5 {[%clk 0:02:14]} 15. f4 {[%clk 0:02:41]}  Rae8 {[%clk 0:02:09]} 16. Bd2 {[%clk 0:02:33]}  Nxd5 {[%clk 0:02:03]} 17. Nxd5 {[%clk 0:02:32]}  Ne7 {[%clk 0:01:55]} 18. Nxe7+ {[%clk 0:02:31]}  Rxe7 {[%clk 0:01:56]} 19. e3 {[%clk 0:02:29]}  d5 {[%clk 0:01:51]} 20. Bc3 {[%clk 0:02:22]}  exf4 {[%clk 0:01:46]} 21. Bxg7 {[%clk 0:02:12]}  Kxg7 {[%clk 0:01:47]} 22. exf4 {[%clk 0:02:09]}  Rfe8 {[%clk 0:01:40]} 23. Rf2 {[%clk 0:01:54]}  Re3 {[%clk 0:01:38]} 24. d4 {[%clk 0:01:49]}  dxc4 {[%clk 0:01:36]} 25. dxc5 {[%clk 0:01:49]}  Rd3 {[%clk 0:01:37]} 26. Qc2 {[%clk 0:01:41]}  Ree3 {[%clk 0:01:16]} 27. Kh2 {[%clk 0:01:15]}  Rxg3 {[%clk 0:01:15]} 28. Qxc4 {[%clk 0:01:06]}  Qc6 {[%clk 0:01:15]} 0-1


[Site "https://www.chess.com"]

[Event "Titled Tuesday Blitz January 17 Early 2023"]
[White "Kravtsiv, Martyn"]
[Black "Dourerassou, Jonathan"]
[WhiteFideId "14113147"]
[BlackFideId "628050"]
[WhiteElo "2598"]
[BlackElo "2414"]
[Result "0-1"]
[Round "10"]
[TimeControl "180+2"]
[Date "2023.01.17"]
[WhiteClock "0:00:09"]
[BlackClock "0:00:25"]

1. e4 {[%clk 0:03:00]}  e6 {[%clk 0:02:08]} 2. d4 {[%clk 0:02:58]}  d5 {[%clk 0:02:08]} 3. e5 {[%clk 0:02:59]}  c5 {[%clk 0:02:08]} 4. c3 {[%clk 0:02:59]}  Nc6 {[%clk 0:02:09]} 5. Nf3 {[%clk 0:02:59]}  Bd7 {[%clk 0:02:09]} 6. Be2 {[%clk 0:02:59]}  Qb6 {[%clk 0:02:10]} 7. O-O {[%clk 0:02:59]}  f6 {[%clk 0:02:10]} 8. dxc5 {[%clk 0:02:56]}  Bxc5 {[%clk 0:02:09]} 9. b4 {[%clk 0:02:57]}  Be7 {[%clk 0:02:09]} 10. Be3 {[%clk 0:02:57]}  Qc7 {[%clk 0:02:09]} 11. exf6 {[%clk 0:02:54]}  Nxf6 {[%clk 0:02:10]} 12. Nbd2 {[%clk 0:02:49]}  O-O {[%clk 0:02:08]} 13. Rc1 {[%clk 0:02:48]}  e5 {[%clk 0:02:05]} 14. b5 {[%clk 0:02:44]}  Na5 {[%clk 0:02:05]} 15. h3 {[%clk 0:02:42]}  Rad8 {[%clk 0:02:03]} 16. a4 {[%clk 0:02:41]}  b6 {[%clk 0:02:03]} 17. Qc2 {[%clk 0:02:39]}  Bc8 {[%clk 0:02:02]} 18. Rfd1 {[%clk 0:02:38]}  Bb7 {[%clk 0:01:54]} 19. Ng5 {[%clk 0:02:35]}  Bc8 {[%clk 0:01:48]} 20. Ngf3 {[%clk 0:02:22]}  h6 {[%clk 0:01:36]} 21. Nh4 {[%clk 0:02:20]}  d4 {[%clk 0:01:33]} 22. cxd4 {[%clk 0:02:16]}  Qxc2 {[%clk 0:01:33]} 23. Rxc2 {[%clk 0:02:17]}  exd4 {[%clk 0:01:34]} 24. Ng6 {[%clk 0:02:15]}  Bc5 {[%clk 0:01:26]} 25. Bxd4 {[%clk 0:02:01]}  Rxd4 {[%clk 0:01:26]} 26. Nxf8 {[%clk 0:02:01]}  Kxf8 {[%clk 0:01:27]} 27. Nf3 {[%clk 0:01:55]}  Rxd1+ {[%clk 0:01:24]} 28. Bxd1 {[%clk 0:01:56]}  Bf5 {[%clk 0:01:18]} 29. Re2 {[%clk 0:01:56]}  Nc4 {[%clk 0:01:17]} 30. Ne5 {[%clk 0:01:51]}  Nxe5 {[%clk 0:01:16]} 31. Rxe5 {[%clk 0:01:52]}  Bd7 {[%clk 0:01:14]} 32. Bb3 {[%clk 0:01:51]}  Bd6 {[%clk 0:01:11]} 33. Re1 {[%clk 0:01:47]}  Be8 {[%clk 0:01:11]} 34. g3 {[%clk 0:01:43]}  Bf7 {[%clk 0:01:10]} 35. Bxf7 {[%clk 0:01:42]}  Kxf7 {[%clk 0:01:11]} 36. f4 {[%clk 0:01:42]}  Nd7 {[%clk 0:01:11]} 37. Rd1 {[%clk 0:01:41]}  Ke6 {[%clk 0:01:10]} 38. Kg2 {[%clk 0:01:41]}  Nc5 {[%clk 0:01:10]} 39. Rd4 {[%clk 0:01:40]}  Be7 {[%clk 0:01:10]} 40. g4 {[%clk 0:01:31]}  Bf6 {[%clk 0:01:10]} 41. f5+ {[%clk 0:01:32]}  Ke5 {[%clk 0:01:10]} 42. Rb4 {[%clk 0:01:31]}  Kd5 {[%clk 0:01:09]} 43. Kf3 {[%clk 0:01:29]}  Bc3 {[%clk 0:01:08]} 44. Rb1 {[%clk 0:01:23]}  Nxa4 {[%clk 0:01:08]} 45. Rb3 {[%clk 0:01:15]}  Kc4 {[%clk 0:01:04]} 46. Ra3 {[%clk 0:01:12]}  Kxb5 {[%clk 0:01:01]} 47. Ke4 {[%clk 0:01:08]}  a5 {[%clk 0:00:54]} 48. h4 {[%clk 0:01:07]}  Kb4 {[%clk 0:00:51]} 49. Ra2 {[%clk 0:01:03]}  Bf6 {[%clk 0:00:51]} 50. Rh2 {[%clk 0:01:00]}  Kc4 {[%clk 0:00:52]} 51. Kf4 {[%clk 0:00:59]}  Nc3 {[%clk 0:00:50]} 52. g5 {[%clk 0:00:59]}  Nd5+ {[%clk 0:00:49]} 53. Kg4 {[%clk 0:00:59]}  hxg5 {[%clk 0:00:49]} 54. hxg5 {[%clk 0:00:59]}  Bc3 {[%clk 0:00:49]} 55. f6 {[%clk 0:00:45]}  gxf6 {[%clk 0:00:49]} 56. g6 {[%clk 0:00:45]}  Ne7 {[%clk 0:00:45]} 57. Kh5 {[%clk 0:00:44]}  f5 {[%clk 0:00:45]} 58. Re2 {[%clk 0:00:40]}  Nd5 {[%clk 0:00:42]} 59. Kg5 {[%clk 0:00:38]}  f4 {[%clk 0:00:28]} 60. Rc2 {[%clk 0:00:25]}  Kd3 {[%clk 0:00:28]} 61. Ra2 {[%clk 0:00:14]}  f3 {[%clk 0:00:27]} 62. Kf5 {[%clk 0:00:13]}  Ne3+ {[%clk 0:00:24]} 63. Ke6 {[%clk 0:00:13]}  Nc2 {[%clk 0:00:24]} 64. Ra4 {[%clk 0:00:09]}  f2 {[%clk 0:00:25]} 65. Rf4 {[%clk 0:00:09]}  Ke2 {[%clk 0:00:25]} 0-1


[Site "https://www.chess.com"]